{"text_format":"1","workbook":"xlsx","n_sheets":5,"sheets":["WELKOM","INPUT","RESULTAAT","LISTS","DATAVERWERKING"],"not_rendered":{"charts":15,"images":3,"macros":1,"external_links":0,"defined_names":8,"comments":2,"pivot_tables":0},"unopened":[],"bounds":{"document_bytes":16777216,"sheet_cells":100000,"rows_first":2000,"rows_last":500,"rows_between":2000,"halvings":0,"cell_chars":16384,"cell_head_chars":4096},"cells_cut":0,"cells_raw":0,"read":"whole","date_system":"1900"}

{"sheet":"WELKOM","index":0,"n_rows":0,"n_cols":0,"rows_kept":0,"cut":false,"hidden":false,"merged":[]}

{"sheet":"INPUT","index":1,"n_rows":86,"n_cols":6,"rows_kept":86,"cut":false,"hidden":false,"merged":[]}
[]
[]
[]
[]
[null,"BASISGEGEVENS"]
[null,"DOSSIER"]
[null,"Naam dossierbeheerder",null,null,null,{"$f":"IF(D7=\"\",3,IF(D7=\"antwoord onbekend\",2,1))","v":3}]
[null,"Namen betrokken personen",null,null,null,{"$f":"IF(D8=\"\",3,IF(D8=\"antwoord onbekend\",2,1))","v":3}]
[null,"Datum opstart dossier",null,null,null,3]
[null,"LOCATIE"]
[null,"Naam",null,null,null,{"$f":"IF(D11=\"\",3,IF(D11=\"antwoord onbekend\",2,1))","v":3}]
[null,"Adres",null,null,null,{"$f":"IF(D12=\"\",3,IF(D12=\"antwoord onbekend\",2,1))","v":3}]
[null,"Huidige eigenaar",null,null,null,3]
[null,"GEÏNTERESSEERDE PARTIJ"]
[null,"Naam",null,null,null,{"$f":"IF(D15=\"\",3,IF(D15=\"antwoord onbekend\",2,1))","v":3}]
[null,"Adres",null,null,null,{"$f":"IF(D16=\"\",3,IF(D16=\"antwoord onbekend\",2,1))","v":3}]
[null,"Contactpersoon",null,null,null,3]
[null,"Telefoon",null,null,null,{"$f":"IF(D18=\"\",3,IF(D18=\"antwoord onbekend\",2,1))","v":3}]
[null,"Email",null,null,null,3]
[]
[null,"RUIMTELIJK KENMERKEN"]
[null,"VAN DE LOCATIE"]
[null,"Zijn er kwetsbare functies binnen een straal van 200 meter rond de site?","belangrijk","kies",null,{"$f":"IF(D23=\"kies\",3,IF(D23=\"antwoord onbekend\",2,1))","v":3}]
[null,"Welke stedenbouwkundige bestemming heeft de site?","belangrijk","kies",null,{"$f":"IF(D24=\"kies\",3,IF(D24=\"antwoord onbekend\",2,1))","v":3}]
[null,"In welk type buurt ligt de site?","belangrijk","kies",null,3]
[null,"Hoe groot is de site?","belangrijk","kies",null,3]
[null,"Wat is de actuele graad van bebouwde oppervlakte op de site?",null,"kies",null,3]
[null,"Is er onroerend erfgoed op de site aanwezig?",null,"kies",null,3]
[null,"In welke staat is de site vandaag?",null,"kies",null,3]
[null,"Is er op de site voldoende ruimte om te bufferen?","belangrijk","kies",null,3]
[null,"VAN DE GEPLANDE ACTIVITEIT"]
[null,"Wat is de visuele impact van het project op de omgeving?","belangrijk","kies",null,3]
[null,"In welke mate moet de bestaande toestand aan de geplande activiteiten worden aangepast?","belangrijk","kies",null,3]
[null,"Vereisen de geplande activiteiten opslag in open lucht?","belangrijk","kies",null,3]
[null,"Kan het aanwezige erfgoed op de site behouden worden?","belangrijk","kies",null,3]
[]
[null,"SOCIALE KENMERKEN"]
[null,"VAN DE GEPLANDE ACTIVITEIT"]
[null,"Draagt het bedrijf bij tot de uitstraling van de gemeente?","belangrijk","kies",null,{"$f":"IF(D39=\"kies\",3,IF(D39=\"antwoord onbekend\",2,1))","v":3}]
[null,"Heeft het bedrijf een publieksfunctie?","belangrijk","kies",null,3]
[null,"Is een gedeeld gebruik van delen van de bedrijfssite mogelijk en bespreekbaar?","belangrijk","kies",null,3]
[null,"Komt de zaakvoerder of een  conciërge bij het bedrijf wonen?","belangrijk","kies",null,3]
[]
[null,"ECONOMISCHE KENMERKEN"]
[null,"VAN DE GEPLANDE ACTIVITEIT"]
[null,"Tot welke economische sector behoort het bedrijf?",null,"kies",null,{"$f":"IF(D46=\"kies\",3,IF(D46=\"antwoord onbekend\",2,1))","v":3}]
[null,"Is de belangrijkste doelgroep van het bedrijf particulieren (B2C) of professionelen (B2B)",null,"kies",null,3]
[null,"Laat de onderneming zich binnen een regionaal clusterbeleid inschrijven?","belangrijk","kies",null,3]
[null,"In welke mate hangt het bedrijf af van lokale (dus nabije) leveranciers?","belangrijk","kies",null,3]
[null,"In welke mate hangt het bedrijf af van lokale (dus nabije) klanten? ","belangrijk","kies",null,3]
[null,"Welke betekenis hebben de geplande investeringen van het bedrijf?","belangrijk","kies",null,3]
[null,"Betreft het een nieuw bedrijf, of de uitbreiding of verhuis van een bestaand bedrijf?","belangrijk","kies",null,3]
[null,"Hoeveel (bijkomende) tewerkstelling brengt de investering met zich mee?","belangrijk","kies",null,3]
[null,"Hoeveel groeimarge heeft de investering binnen het terrein op basis van actuele groeicijfers?","belangrijk","kies",null,3]
[null,"Wat betekent de investering op vlak van gemeentelijke inkomsten?","belangrijk","kies",null,3]
[null,"Zijn er investeringen nodig vanuit de stad of gemeente om de investering te faciliteren?","belangrijk","kies",null,3]
[null,"Hoe groot is de kans op schade aan en/of slijtage van het publieke domein tijdens de exploitatie","belangrijk","kies",null,3]
[]
[null,"KENMERKEN LEEFMILIEU"]
[null,"VAN DE GEPLANDE ACTIVITEIT"]
[null,"Vereisen de geplande activiteiten een milieuvergunning?","belangrijk","kies",null,{"$f":"IF(D61=\"kies\",3,IF(D61=\"antwoord onbekend\",2,1))","v":3}]
[null,"Vereisen de geplande activiteiten de opslag of behandeling van gevaarlijke stoffen?","belangrijk","kies",null,3]
[null,"Veroorzaken de geplande activiteiten luchtverontreiniging?","belangrijk","kies",null,3]
[null,"Veroorzaken de geplande activiteiten stofhinder?","belangrijk","kies",null,3]
[null,"Veroorzaken de geplande activiteiten geurhinder?","belangrijk","kies",null,3]
[null,"Veroorzaken de geplande activiteiten lichthinder?","belangrijk","kies",null,3]
[null,"Veroorzaken de geplande activiteiten geluidsoverlast?","belangrijk","kies",null,3]
[null,"Veroorzaken de geplande activiteiten trillingen?","belangrijk","kies",null,3]
[null,"Vereisen de geplande activiteiten meer verharde oppervlakte dan vandaag reeds op de site aanwezig is?","belangrijk","kies",null,3]
[]
[null,"MOBILITEITSKENMERKEN"]
[null,"VAN DE LOCATIE"]
[null,"Ligt de site op wandelafstand van openbaar vervoer?","belangrijk","kies",null,3]
[null,"Hoe ver ligt de site van het hogere wegennet?","belangrijk","kies",null,3]
[null,"Wat is de kwaliteit van het ontsluitingstraject?","belangrijk","kies",null,3]
[null,"VAN DE GEPLANDE ACTIVITEIT"]
[null,"Met welk type vrachtvervoer worden goederen hoofdzakelijk aan- en afgevoerd?","belangrijk","kies",null,3]
[null,"Hoeveel vrachtbewegingen zijn er binnen de courante werkuren?","belangrijk","kies",null,3]
[null,"Hoeveel vrachtbewegingen zijn er 's morgens en 's avonds (samengeteld)?","belangrijk","kies",null,3]
[null,"Hoeveel vrachtbewegingen zijn er 's nachts?","belangrijk","kies",null,3]
[null,"In welke mate zijn de vrachtbewegingen gespreid in tijd?","belangrijk","kies",null,3]
[null,"Waar gebeurt het laden en lossen?","belangrijk","kies",null,3]
[null,"Wanneer gebeurt het laden en lossen?","belangrijk","kies",null,3]
[null,"Zullen de medewerkers op het eigen bedrijfsterrein kunnen parkeren?","belangrijk","kies",null,3]
[null,"Wordt er bij de geplande activiteiten in shifts gewerkt?","belangrijk","kies",null,3]
[null,"Hoeveel bezoekers ontvangt heb bedrijf?","belangrijk","kies",null,3]

{"sheet":"RESULTAAT","index":2,"n_rows":76,"n_cols":4,"rows_kept":76,"cut":false,"hidden":false,"merged":[[52,1,56,1],[62,1,62,3],[63,1,66,1],[2,1,2,3],[31,1,31,3],[37,1,37,3],[51,1,51,3],[18,1,22,1],[32,1,35,1],[38,1,42,1],[17,1,17,3],[10,1,10,3],[6,1,6,3],[3,2,3,3],[4,2,4,3],[5,2,5,3],[13,2,13,3],[14,2,14,3],[15,2,15,3],[1,1,1,3],[7,2,7,3],[8,2,8,3],[9,2,9,3],[11,2,11,3],[12,2,12,3]]}
[]
[]
[null,"RUIMTELIJK KENMERKEN"]
[null,"Naam dossierbeheerder",{"$f":"INPUT!D7","v":0}]
[null,"Namen betrokken personen",{"$f":"INPUT!D8","v":0}]
[null,"Datum opstart dossier",{"$f":"INPUT!D9","v":"00:00:00"}]
[null,"LOCATIE"]
[null,"Naam",{"$f":"INPUT!D11","v":0}]
[null,"Adres",{"$f":"INPUT!D12","v":0}]
[null,"Huidige eigenaar",{"$f":"INPUT!D13","v":0}]
[null,"GEÏNTERESSEERDE PARTIJ"]
[null,"Naam",{"$f":"INPUT!D15","v":0}]
[null,"Adres",{"$f":"INPUT!D16","v":0}]
[null,"Contactpersoon",{"$f":"INPUT!D17","v":0}]
[null,"Telefoon",{"$f":"INPUT!D18","v":0}]
[null,"Email",{"$f":"INPUT!D19","v":0}]
[]
[null,"RUIMTELIJK KENMERKEN"]
[null,null,{"$f":"DATAVERWERKING!G6","v":1},{"$f":"IF(DATAVERWERKING!D6=\"kies\",\"geen informatie\",VLOOKUP(DATAVERWERKING!D6,Range_vlookup,5,FALSE))","v":"geen informatie"}]
[null,null,{"$f":"DATAVERWERKING!G7","v":1},{"$f":"IF(DATAVERWERKING!D7=\"kies\",\"geen informatie\",VLOOKUP(DATAVERWERKING!D7,Range_vlookup,5,FALSE))","v":"geen informatie"}]
[null,null,{"$f":"DATAVERWERKING!G8","v":1},{"$f":"IF(DATAVERWERKING!D8=\"kies\",\"geen informatie\",VLOOKUP(DATAVERWERKING!D8,Range_vlookup,5,FALSE))","v":"geen informatie"}]
[null,null,{"$f":"DATAVERWERKING!G9","v":1},{"$f":"IF(DATAVERWERKING!D9=\"kies\",\"geen informatie\",VLOOKUP(DATAVERWERKING!D9,Range_vlookup,5,FALSE))","v":"geen informatie"}]
[null,null,null,{"$f":"IF(DATAVERWERKING!D10=\"kies\",\"geen informatie\",VLOOKUP(DATAVERWERKING!D10,Range_vlookup,5,FALSE))","v":"geen informatie"}]
[null,null,null,{"$f":"IF(DATAVERWERKING!D11=\"kies\",\"geen informatie\",VLOOKUP(DATAVERWERKING!D11,Range_vlookup,5,FALSE))","v":"geen informatie"}]
[null,null,null,{"$f":"IF(DATAVERWERKING!D12=\"kies\",\"geen informatie\",VLOOKUP(DATAVERWERKING!D12,Range_vlookup,5,FALSE))","v":"geen informatie"}]
[null,null,{"$f":"DATAVERWERKING!G13","v":1},{"$f":"IF(DATAVERWERKING!D13=\"kies\",\"geen informatie\",VLOOKUP(DATAVERWERKING!D13,Range_vlookup,5,FALSE))","v":"geen informatie"}]
[null,null,{"$f":"DATAVERWERKING!G15","v":1},{"$f":"IF(DATAVERWERKING!D15=\"kies\",\"geen informatie\",VLOOKUP(DATAVERWERKING!D15,Range_vlookup,5,FALSE))","v":"geen informatie"}]
[null,null,{"$f":"DATAVERWERKING!G16","v":1},{"$f":"IF(DATAVERWERKING!D16=\"kies\",\"geen informatie\",VLOOKUP(DATAVERWERKING!D16,Range_vlookup,5,FALSE))","v":"geen informatie"}]
[null,null,{"$f":"DATAVERWERKING!G17","v":1},{"$f":"IF(DATAVERWERKING!D17=\"kies\",\"geen informatie\",VLOOKUP(DATAVERWERKING!D17,Range_vlookup,5,FALSE))","v":"geen informatie"}]
[null,null,{"$f":"DATAVERWERKING!G18","v":1},{"$f":"IF(DATAVERWERKING!D18=\"kies\",\"geen informatie\",VLOOKUP(DATAVERWERKING!D18,Range_vlookup,5,FALSE))","v":"geen informatie"}]
[]
[null,"SOCIALE KENMERKEN"]
[null,null,{"$f":"DATAVERWERKING!G22","v":1},{"$f":"IF(DATAVERWERKING!D22=\"kies\",\"geen informatie\",VLOOKUP(DATAVERWERKING!D22,Range_vlookup,5,FALSE))","v":"geen informatie"}]
[null,null,{"$f":"DATAVERWERKING!G23","v":1},{"$f":"IF(DATAVERWERKING!D23=\"kies\",\"geen informatie\",VLOOKUP(DATAVERWERKING!D23,Range_vlookup,5,FALSE))","v":"geen informatie"}]
[null,null,{"$f":"DATAVERWERKING!G24","v":1},{"$f":"IF(DATAVERWERKING!D24=\"kies\",\"geen informatie\",VLOOKUP(DATAVERWERKING!D24,Range_vlookup,5,FALSE))","v":"geen informatie"}]
[null,null,{"$f":"DATAVERWERKING!G25","v":1},{"$f":"IF(DATAVERWERKING!D25=\"kies\",\"geen informatie\",VLOOKUP(DATAVERWERKING!D25,Range_vlookup,5,FALSE))","v":"geen informatie"}]
[]
[null,"ECONOMISCHE KENMERKEN"]
[null,null,null,{"$f":"IF(DATAVERWERKING!D29=\"kies\",\"geen informatie\",VLOOKUP(DATAVERWERKING!D29,Range_vlookup,5,FALSE))","v":"geen informatie"}]
[null,null,null,{"$f":"IF(DATAVERWERKING!D30=\"kies\",\"geen informatie\",VLOOKUP(DATAVERWERKING!D30,Range_vlookup,5,FALSE))","v":"geen informatie"}]
[null,null,{"$f":"DATAVERWERKING!G31","v":1},{"$f":"IF(DATAVERWERKING!D31=\"kies\",\"geen informatie\",VLOOKUP(DATAVERWERKING!D31,Range_vlookup,5,FALSE))","v":"geen informatie"}]
[null,null,{"$f":"DATAVERWERKING!G32","v":1},{"$f":"IF(DATAVERWERKING!D32=\"kies\",\"geen informatie\",VLOOKUP(DATAVERWERKING!D32,Range_vlookup,5,FALSE))","v":"geen informatie"}]
[null,null,{"$f":"DATAVERWERKING!G33","v":1},{"$f":"IF(DATAVERWERKING!D33=\"kies\",\"geen informatie\",VLOOKUP(DATAVERWERKING!D33,Range_vlookup,5,FALSE))","v":"geen informatie"}]
[null,null,{"$f":"DATAVERWERKING!G34","v":1},{"$f":"IF(DATAVERWERKING!D34=\"kies\",\"geen informatie\",VLOOKUP(DATAVERWERKING!D34,Range_vlookup,5,FALSE))","v":"geen informatie"}]
[null,null,{"$f":"DATAVERWERKING!G35","v":1},{"$f":"IF(DATAVERWERKING!D35=\"kies\",\"geen informatie\",VLOOKUP(DATAVERWERKING!D35,Range_vlookup,5,FALSE))","v":"geen informatie"}]
[null,null,{"$f":"DATAVERWERKING!G36","v":1},{"$f":"IF(DATAVERWERKING!D36=\"kies\",\"geen informatie\",VLOOKUP(DATAVERWERKING!D36,Range_vlookup,5,FALSE))","v":"geen informatie"}]
[null,null,{"$f":"DATAVERWERKING!G37","v":1},{"$f":"IF(DATAVERWERKING!D37=\"kies\",\"geen informatie\",VLOOKUP(DATAVERWERKING!D37,Range_vlookup,5,FALSE))","v":"geen informatie"}]
[null,null,{"$f":"DATAVERWERKING!G38","v":1},{"$f":"IF(DATAVERWERKING!D38=\"kies\",\"geen informatie\",VLOOKUP(DATAVERWERKING!D38,Range_vlookup,5,FALSE))","v":"geen informatie"}]
[null,null,{"$f":"DATAVERWERKING!G39","v":1},{"$f":"IF(DATAVERWERKING!D39=\"kies\",\"geen informatie\",VLOOKUP(DATAVERWERKING!D39,Range_vlookup,5,FALSE))","v":"geen informatie"}]
[null,null,{"$f":"DATAVERWERKING!G40","v":1},{"$f":"IF(DATAVERWERKING!D40=\"kies\",\"geen informatie\",VLOOKUP(DATAVERWERKING!D40,Range_vlookup,5,FALSE))","v":"geen informatie"}]
[]
[null,"KENMERKEN LEEFMILIEU"]
[null,null,{"$f":"DATAVERWERKING!G44","v":1},{"$f":"IF(DATAVERWERKING!D44=\"kies\",\"geen informatie\",VLOOKUP(DATAVERWERKING!D44,Range_vlookup,5,FALSE))","v":"geen informatie"}]
[null,null,{"$f":"DATAVERWERKING!G45","v":1},{"$f":"IF(DATAVERWERKING!D45=\"kies\",\"geen informatie\",VLOOKUP(DATAVERWERKING!D45,Range_vlookup,5,FALSE))","v":"geen informatie"}]
[null,null,{"$f":"DATAVERWERKING!G46","v":1},{"$f":"IF(DATAVERWERKING!D46=\"kies\",\"geen informatie\",VLOOKUP(DATAVERWERKING!D46,Range_vlookup,5,FALSE))","v":"geen informatie"}]
[null,null,{"$f":"DATAVERWERKING!G47","v":1},{"$f":"IF(DATAVERWERKING!D47=\"kies\",\"geen informatie\",VLOOKUP(DATAVERWERKING!D47,Range_vlookup,5,FALSE))","v":"geen informatie"}]
[null,null,{"$f":"DATAVERWERKING!G48","v":1},{"$f":"IF(DATAVERWERKING!D48=\"kies\",\"geen informatie\",VLOOKUP(DATAVERWERKING!D48,Range_vlookup,5,FALSE))","v":"geen informatie"}]
[null,null,{"$f":"DATAVERWERKING!G49","v":1},{"$f":"IF(DATAVERWERKING!D49=\"kies\",\"geen informatie\",VLOOKUP(DATAVERWERKING!D49,Range_vlookup,5,FALSE))","v":"geen informatie"}]
[null,null,{"$f":"DATAVERWERKING!G50","v":1},{"$f":"IF(DATAVERWERKING!D50=\"kies\",\"geen informatie\",VLOOKUP(DATAVERWERKING!D50,Range_vlookup,5,FALSE))","v":"geen informatie"}]
[null,null,{"$f":"DATAVERWERKING!G51","v":1},{"$f":"IF(DATAVERWERKING!D51=\"kies\",\"geen informatie\",VLOOKUP(DATAVERWERKING!D51,Range_vlookup,5,FALSE))","v":"geen informatie"}]
[null,null,{"$f":"DATAVERWERKING!G52","v":1},{"$f":"IF(DATAVERWERKING!D52=\"kies\",\"geen informatie\",VLOOKUP(DATAVERWERKING!D52,Range_vlookup,5,FALSE))","v":"geen informatie"}]
[]
[null,"MOBILITEITSKENMERKEN"]
[null,null,{"$f":"DATAVERWERKING!G56","v":1},{"$f":"IF(DATAVERWERKING!D56=\"kies\",\"geen informatie\",VLOOKUP(DATAVERWERKING!D56,Range_vlookup,5,FALSE))","v":"geen informatie"}]
[null,null,{"$f":"DATAVERWERKING!G57","v":1},{"$f":"IF(DATAVERWERKING!D57=\"kies\",\"geen informatie\",VLOOKUP(DATAVERWERKING!D57,Range_vlookup,5,FALSE))","v":"geen informatie"}]
[null,null,{"$f":"DATAVERWERKING!G58","v":1},{"$f":"IF(DATAVERWERKING!D58=\"kies\",\"geen informatie\",VLOOKUP(DATAVERWERKING!D58,Range_vlookup,5,FALSE))","v":"geen informatie"}]
[null,null,{"$f":"DATAVERWERKING!G60","v":1},{"$f":"IF(DATAVERWERKING!D60=\"kies\",\"geen informatie\",VLOOKUP(DATAVERWERKING!D60,Range_vlookup,5,FALSE))","v":"geen informatie"}]
[null,null,{"$f":"DATAVERWERKING!G61","v":1},{"$f":"IF(DATAVERWERKING!D61=\"kies\",\"geen informatie\",VLOOKUP(DATAVERWERKING!D61,Range_vlookup,5,FALSE))","v":"geen informatie"}]
[null,null,{"$f":"DATAVERWERKING!G62","v":1},{"$f":"IF(DATAVERWERKING!D62=\"kies\",\"geen informatie\",VLOOKUP(DATAVERWERKING!D62,Range_vlookup,5,FALSE))","v":"geen informatie"}]
[null,null,{"$f":"DATAVERWERKING!G63","v":1},{"$f":"IF(DATAVERWERKING!D63=\"kies\",\"geen informatie\",VLOOKUP(DATAVERWERKING!D63,Range_vlookup,5,FALSE))","v":"geen informatie"}]
[null,null,{"$f":"DATAVERWERKING!G64","v":1},{"$f":"IF(DATAVERWERKING!D64=\"kies\",\"geen informatie\",VLOOKUP(DATAVERWERKING!D64,Range_vlookup,5,FALSE))","v":"geen informatie"}]
[null,null,{"$f":"DATAVERWERKING!G65","v":1},{"$f":"IF(DATAVERWERKING!D65=\"kies\",\"geen informatie\",VLOOKUP(DATAVERWERKING!D65,Range_vlookup,5,FALSE))","v":"geen informatie"}]
[null,null,{"$f":"DATAVERWERKING!G66","v":1},{"$f":"IF(DATAVERWERKING!D66=\"kies\",\"geen informatie\",VLOOKUP(DATAVERWERKING!D66,Range_vlookup,5,FALSE))","v":"geen informatie"}]
[null,null,{"$f":"DATAVERWERKING!G67","v":1},{"$f":"IF(DATAVERWERKING!D67=\"kies\",\"geen informatie\",VLOOKUP(DATAVERWERKING!D67,Range_vlookup,5,FALSE))","v":"geen informatie"}]
[null,null,{"$f":"DATAVERWERKING!G68","v":1},{"$f":"IF(DATAVERWERKING!D68=\"kies\",\"geen informatie\",VLOOKUP(DATAVERWERKING!D68,Range_vlookup,5,FALSE))","v":"geen informatie"}]
[null,null,{"$f":"DATAVERWERKING!G69","v":1},{"$f":"IF(DATAVERWERKING!D69=\"kies\",\"geen informatie\",VLOOKUP(DATAVERWERKING!D69,Range_vlookup,5,FALSE))","v":"geen informatie"}]

{"sheet":"LISTS","index":3,"n_rows":315,"n_cols":5,"rows_kept":315,"cut":false,"hidden":true,"merged":[]}
["R01 - kwestsbare functies"]
["kies",null,0]
["neen, er zijn geen kwestbare functies",null,0,null,"In een straal van 200 meter rond de site zijn er geen kwetsbare functies"]
["ja, er zijn kwetsbare functies",null,5,null,"In een straal van 200 meter zijn er kwetsbare functies"]
["het is niet bekend of er in een straal van 200 meter kwetsbare functies zijn",null,"x",null,"Het is niet bekend of er in een straal van 200 meter kwetsbare functies zijn"]
["R02 - bestemming"]
["kies",null,0]
["industriegebied (paars)",null,0,null,"De site heeft als stedenbouwkundige bestemming \"industriegebied\""]
["woongebied (rood)",null,5,null,"De site heeft als stedenbouwkundige bestemming \"woongebied\""]
["andere",null,5,null,"De site heeft een andere stedenbouwkundige bestemming dan \"industriegebied\" of \"woongebied\""]
["R04 - type buurt"]
["kies",null,0]
["gemengd weefsel langs invalsweg",null,0,null,"De site ligt in het gemengde weefsel langs een invalsweg"]
["19de eeuwse rand",null,2.5,null,"De site ligt in de 19de eeuwse rand"]
["groene / residentiële rand",null,2.5,null,"De site ligt in de groene en residentiële rand"]
["historisch centrum",null,5,null,"De site ligt in het historische centrum"]
["R05 - oppervlakte"]
["kies",null,0]
["< 250 m²",null,0,null,"De site is kleiner dan 250 m²"]
["< 500 m²",null,{"$f":"5/6","v":0.83333333333333337},null,"De site is kleiner dan 500 m²"]
["< 1000 m²",null,{"$f":"C20+5/6","v":1.6666666666666667},null,"De site is kleiner dan 1000 m²"]
["< 2000 m²",null,{"$f":"C21+5/6","v":2.5},null,"De site is kleiner dan 2000 m²"]
["< 5000 m²",null,{"$f":"C22+5/6","v":3.3333333333333335},null,"De site is kleiner dan 5000 m²"]
["< 10.000 m²",null,{"$f":"C23+5/6","v":4.166666666666667},null,"De site is kleiner dan 10.000 m²"]
["> 10.000 m²",null,{"$f":"C24+5/6","v":5},null,"De site is groter dan 10.000 m²"]
["R06 - bebouwingsgraad"]
["kies"]
["circa 0 procent",null,null,null,"De site is niet bebouwd"]
["circa 25 procent",null,null,null,"De site is voor ongeveer 25 procent bebouwd"]
["circa 50 procent",null,null,null,"De site is voor ongeveer de helft bebouwd"]
["circa 75 procent",null,null,null,"De site is voor ongeveer 75 procent bebouwd"]
["circa 100 procent",null,null,null,"De site is volledig bebouwd"]
["de bebouwingsgraad van de site is niet bekend",null,null,null,"De bebouwingsgraad van de site is niet bekend"]
["R07 - aanwezigheid erfgoed"]
["kies"]
["ja, er is erfgoed aanwezig",null,null,null,"Op de site is er onroerend erfgoed aanwezig"]
["neen, er is geen erfgoed aanwezig",null,null,null,"Op de site is er geen onroerend erfgoed aanwezig"]
["het is niet bekend of er op de site onroerend erfgoed aanwezig is",null,null,null,"Het is niet bekend of er op de site onroerend erfgoed aanwezig is"]
["R08 - staat van de site"]
["kies"]
["de site is nieuw en niet verwaarloosd",null,null,null,"De site is nieuw en niet verwaarloosd"]
["de site is nieuw maar verwaarloosd",null,null,null,"De site is nieuw maar wel verwaarloosd"]
["de site is verouderd maar niet verwaarloosd",null,null,null,"De site is verouderd maar niet verwaarloosd"]
["de site is verouderd en verwaarloosd",null,null,null,"De site is verouderd en ook verwaarloosd"]
["het is niet bekend in welke mate de site verouderd en/of verwaarloosd is",null,null,null,"Het is niet bekend in welke mate de site verouderd en/of verwaarloosd is"]
["R09 - buffering"]
["kies",null,0]
["ja, volledig",null,0,null,"De site biedt voldoende ruimte om te bufferen"]
["ja, gedeeltelijk",null,2.5,null,"De site biedt gedeeltelijke ruimte om te bufferen"]
["neen, geen buffering op eigen terrein mogelijk",null,5,null,"De site biedt geen mogelijkheden om te bufferen"]
["het is niet bekend of de site mogelijkheden biedt om te bufferen",null,"x",null,"Het is niet bekend of de site mogelijkheden biedt om te bufferen"]
["R10 - visuele impact"]
["kies",null,0]
["het geplande project heeft een positieve visuele impact",null,0,null,"Het geplande project heeft een positieve visuele impact"]
["het geplande project heeft een neutrale visuele impact",null,2.5,null,"Het geplande project heeft een neutrale visuele impact"]
["het geplande project heeft een negatieve visuele impact",null,5,null,"Het geplande project heeft een negatieve visuele impact"]
["het is niet bekend welke de visuele impact zal zijn van het geplande project",null,"x",null,"Het is niet bekend welke de visuele impact zal zijn van het geplande project"]
["R11 - inrichtingsplannen"]
["kies",null,0]
["de site blijft ongewijzigd",null,{"$f":"IF(OR(INPUT!$D$29=$A$40,INPUT!$D$29=$A$42,INPUT!$D$29=$A$44),5,0)","v":5},null,"De inrichting van de site blijft ongewijzigd"]
["de site wordt opgefrist",null,{"$f":"IF(OR(INPUT!$D$29=$A$40,INPUT!$D$29=$A$42,INPUT!$D$29=$A$44),2.5,0)","v":2.5},null,"De site wordt opgefrist"]
["de site wordt volledig vernieuwd",null,{"$f":"IF(OR(INPUT!$D$29=$A$40,INPUT!$D$29=$A$42,INPUT!$D$29=$A$44),0,5)","v":0},null,"De site wordt volledig vernieuwd"]
["het is niet bekend of er vernieuwingswerken op de site zullen worden uitgevoerd",null,"x",null,"Het is niet bekend of er vernieuwingswerken op de site zullen worden uitgevoerd"]
["R12 - opslag"]
["kies",null,0]
["het geplande project vereist geen opslag in open lucht",null,0,null,"Het geplande project vereist geen opslag in open lucht"]
["het geplande project vereist opslag in open lucht die in principe niet hinderlijk is",null,1,null,"Het geplande project vereist opslag in open lucht die in principe niet hinderlijk is"]
["het geplande project vereist opslag in open lucht die hinderlijk kan zijn",null,5,null,"Het geplande project vereist opslag in open lucht die hinderlijk kan zijn"]
["het is niet bekend of het project opslag in open lucht vereist",null,"x",null,"Het is niet bekend of het project opslag in open lucht vereist"]
["R13 - behoud erfgoed"]
["kies",null,0]
["het bouwkundig erfgoed kan behouden worden",null,0,null,"Het bouwkundig erfgoed kan behouden worden"]
["het bouwkundig erfgoed moet worden aangetast",null,2.5,null,"Het bouwkundig erfgoed moet worden aangetast"]
["het bouwkundig erfgoed moet verdwijnen",null,5,null,"Het bouwkundig erfgoed moet verdwijnen"]
["het is niet bekend in welke mate het onroerend erfgoed wordt behouden",null,"x",null,"Het is niet bekend in welke mate het onroerend erfgoed wordt behouden"]
["S01 - uitstraling"]
["kies",null,0]
["het bedrijf draagt bij tot de uitstraling van de gemeente",null,0,null,"Het bedrijf draagt bij tot de uitstraling van de gemeente"]
["het bedrijf draagt beperkt bij tot de uitstraling van de gemeente",null,{"$f":"5/3*1","v":1.6666666666666667},null,"Het bedrijf draagt beperkt bij tot de uitstraling van de gemeente"]
["het bedrijf draagt niet bij tot de uitstraling van de gemeente",null,{"$f":"5/3*2","v":3.3333333333333335},null,"het bedrijf draagt niet bij tot de uitstraling van de gemeente"]
["het bedrijf heeft een negatieve invloed op de uitstraling van de gemeente",null,5,null,"Het bedrijf heeft een negatieve invloed op de uitstraling van de gemeente"]
["het is niet bekend of het bedrijf bijdraagt tot de uitstraling van de gemeente",null,"x",null,"Het is niet bekend of het bedrijf bijdraagt tot de uitstraling van de gemeente"]
["S02 - publieksfunctie"]
["kies",null,0]
["de activiteiten hebben een publieksfunctie",null,0,null,"De activiteiten hebben een publieksfunctie"]
["de activiteiten hebben geen publieksfunctie",null,5,null,"De activiteiten hebben geen publieksfunctie"]
["het is niet bekend of de activiteiten een publieksfunctie hebben",null,"x",null,"Het is niet bekend of de activiteiten een publieksfunctie hebben"]
["S03 - collectief gebruik"]
["kies",null,0]
["dit is mogelijk en bespreekbaar",null,0,null,"Collectief gebruik van de bedrijfsterreinen is mogelijk en bespreekbaar"]
["dit is niet mogelijk",null,0,null,"Collectief gebruik van de bedrijfsterreinen is niet mogelijk"]
["dit is mogelijk maar niet bespreekbaar",null,5,null,"Collectief gebruik van de bedrijfsterreinen is  mogelijk en bespreekbaar"]
["het is niet bekend of collectief gebruik mogelijk en bespreekbaar is",null,"x",null,"Het is niet bekend of collectief gebruik van de bedrijfsterreinen mogelijk en/of bespreekbaar is"]
["S04 - bewoning op de site"]
["ja, op de site zal er iemand wonen",null,0,null,"De bedrijfssite zal bewoond zijn"]
["neen, op de site zal er niemand wonen",null,5,null,"De bedrijfssite zal niet bewoond zijn"]
["het is niet bekend of de bedrijfssite bewoond zal zijn",null,"x",null,"Het is niet bekend of de bedrijfssite bewoond zal zijn"]
["E01 - sector"]
["kies"]
["industrie",null,null,null,"Het betreft industriële activiteiten"]
["ambachten",null,null,null,"Het betreft ambachtelijke activiteiten"]
["handel",null,null,null,"Het betreft handelsactiviteiten"]
["diensten",null,null,null,"Het betreft kantoorachtige activiteiten"]
["bouwnijverheid",null,null,null,"Het betreft bouwnijverheid"]
["E02 - doelgroep"]
["kies"]
["B2B",null,null,null,"De doelgroep van de geplande activiteiten is B2B"]
["B2C",null,null,null,"De doelgroep van de geplande activiteiten is B2C"]
["E03 - cluster"]
["ja, de activiteiten maken deel uit van een regionale cluster",null,0,null,"De geplande activiteiten maken deel uit van een regionale cluster"]
["neen, de activiteiten maken geen deel uit van een regionale cluster",null,5,null,"De geplande activiteiten maken geen deel uit van een regionale cluster"]
["het is niet bekend of de geplande activiteiten deel uit maken van een regionale cluster",null,"x",null,"Het is niet bekend of de geplande activiteiten deel uit maken van een regionale cluster"]
["E04/E05 - afhankelijkheid leveranciers"]
["kies",null,0]
["volledig",null,0,null,"De geplande activiteiten zijn volledig afhankelijk van lokale leveranciers"]
["overwegend",null,{"$f":"5/3*1","v":1.6666666666666667},null,"De geplande activiteiten zijn in meerderer mate afhankelijk van lokale leveranciers"]
["in mindere mate",null,{"$f":"5/3*2","v":3.3333333333333335},null,"De geplande activiteiten zijn in mindere mate afhankelijk van lokale leveranciers"]
["niet",null,5,null,"De geplande activiteiten zijn niet afhankelijk van lokale leveranciers"]
["het is niet bekend of de geplande activiteiten afhankelijk zijn van lokale leveranciers",null,"x",null,"Het is niet bekend of de geplande activiteiten afhankelijk zijn van lokale leveranciers"]
["E04/E05 - afhankelijkheid klanten"]
["kies",null,0]
["volledig",null,0,null,"De geplande activiteiten zijn volledig afhankelijk van lokale klanten"]
["overwegend",null,{"$f":"5/3*1","v":1.6666666666666667},null,"De geplande activiteiten zijn in meerderer mate afhankelijk van lokale klanten"]
["in mindere mate",null,{"$f":"5/3*2","v":3.3333333333333335},null,"De geplande activiteiten zijn in mindere mate afhankelijk van lokale klanten"]
["niet",null,5,null,"De geplande activiteiten zijn niet afhankelijk van lokale klanten"]
["het is niet bekend of de geplande activiteiten afhankelijk zijn van lokale klanten",null,"x",null,"Het is niet bekend of de geplande activiteiten afhankelijk zijn van lokale klanten"]
["E06 - geplande investeringen"]
["kies",null,0]
["de investering is aanzienlijk",null,0,null,"De geplande investeringen zijn aanzienlijk"]
["de investering is beperkt",null,5,null,"De geplande investeringen zijn beperkt"]
["de omvang van de geplande investeringen zijn niet bekend",null,"x",null,"De omvang van de geplande investeringen zijn niet bekend"]
["E07 - huidige vestiging"]
["kies",null,0]
["vestiging van een volledig nieuw bedrijf",null,-3,null,"Het betreft een vestiging van een volledig nieuw bedrijf"]
["vestiging van een bestaand bedrijf van buiten de regio",null,-2,null,"Het betreft een vestiging van een bestaand bedrijf van buiten de regio"]
["uitbreiding van een bestaand bedrijf  binnen dezelfde regio of gemeente",null,-1,null,"Het betreft een uitbreiding van een bestaand bedrijf  binnen dezelfde regio of gemeente"]
["verhuis van een bestaand bedrijf binnen dezelfde regio of gemeente",null,0,null,"Het betreft een verhuis van een bestaand bedrijf binnen dezelfde regio of gemeente"]
["verhuis en inkrimping van een bestaand bedrijf binnen dezelfde regio of gemeente",null,5,null,"Het betreft een verhuis en inkrimping van een bestaand bedrijf binnen dezelfde regio of gemeente"]
["het is niet bekend wat de geschiedenis is en of het een uitbreiding / inkrimping betreft",null,"x",null,"Het is niet bekend wat de geschiedenis is van het bedrijf en of het een uitbreiding dan wel inkrimping betreft"]
["E08 - tewerkstelling"]
["kies",null,0]
[{"$f":"IF(INPUT!$D$46=$A$100,\"minder dan 15 medewerkers\",IF(INPUT!$D$46=$A$104,\"minder dan 3 medewerkers\",\"minder dan 4 medewerkers\"))","v":"minder dan 4 medewerkers"},null,5,null,{"$f":"CONCATENATE(\"De geplande activiteiten vertegenwoordigen bijkomende tewerkstelling van\",\" \",_E08[[#This Row],[E08 - tewerkstelling]])","v":"De geplande activiteiten vertegenwoordigen bijkomende tewerkstelling van minder dan 4 medewerkers"}]
[{"$f":"IF(INPUT!$D$46=$A$100,\"meer dan 15 medewerkers\",IF(INPUT!$D$46=$A$104,\"meer dan 3 medewerkers\",\"meer dan 4 medewerkers\"))","v":"meer dan 4 medewerkers"},null,0,null,{"$f":"CONCATENATE(\"De geplande activiteiten vertegenwoordigen bijkomende tewerkstelling van\",\" \",_E08[[#This Row],[E08 - tewerkstelling]])","v":"De geplande activiteiten vertegenwoordigen bijkomende tewerkstelling van meer dan 4 medewerkers"}]
["de bijkomende tewerkstelling is niet bekend",null,"x",null,"Het is niet bekend hoeveel bijkomende tewerkstelling de geplande activiteiten zullen genereren"]
["E09 - groeimarge"]
["kies",null,0]
["meer dan 100 procent",null,0,null,"De groeimarge van de geplande activiteiten op de site zit boven 100 procent"]
["75 tot 100 procent",null,{"$f":"C151/4","v":1.25},null,"De groeimarge van de geplande activiteiten op de site zit tussen 75 en 100 procent"]
["50 tot 75 procent",null,{"$f":"C151/4*2","v":2.5},null,"De groeimarge van de geplande activiteiten op de site zit tussen 50 en 75 procent"]
["25 tot 50 procent",null,{"$f":"5/4*3","v":3.75},null,"De groeimarge van de geplande activiteiten op de site zit tussen 25 en 50 procent"]
["minder dan 25 procent",null,5,null,"De groeimarge van de geplande activiteiten op de site zit onder de 25 procent"]
["het is niet bekend hoeveel groeimarge het bedrijf heeft op de site",null,"x",null,"Het is niet bekend hoeveel groeimarge het bedrijf heeft op de site"]
["E10 - belastingen"]
["kies",null,0]
["bovengemiddeld",null,-5,null,"De geplande investeringen hebben een bovengemiddelde invloed op de gemeentelijke inkomsten"]
["gemiddeld",null,0,null,"De geplande investeringen hebben een gemiddelde invloed op de gemeentelijke inkomsten"]
["lager dan gemiddeld",null,5,null,"De geplande investeringen hebben een lager dan gemiddelde invloed op de gemeentelijke inkomsten"]
["de invloed de geplande investeringen op de gemeentelijke inkomsten zijn niet bekend",null,"x",null,"Het niet bekend welke invloed de geplande investeringen op de gemeentelijke inkomsten hebben"]
["E11 - gemeentelijke investeringen"]
["kies",null,0]
["er zijn geen investeringen door de gemeente vereist",null,1,null,"Er zijn geen investeringen door de gemeente vereist om de geplande activteiten mogelijk te maken"]
["er zijn minimale investeringen door de gemeente vereist",null,2,null,"Er zijn minimale investeringen door de gemeente vereist  om de geplande activteiten mogelijk te maken"]
["er zijn aanzienlijke investeringen door de gemeente vereist",null,5,null,"Er zijn aanzienlijke investeringen door de gemeente vereist  om de geplande activteiten mogelijk te maken"]
["de nodige investeringen door de gemeente zijn niet bekend",null,"x",null,"Het is niet bekend of en welke investeringen door de gemeente vereist zijn om de geplande activiteiten mogelijk te maken"]
["E12 - slijtage"]
["kies",null,0]
["nihil",null,0,null,"De kans op schade aan en/of slijtage van het publieke domein tijdens de exploitatie is nihil"]
["gering",null,{"$f":"5/3","v":1.6666666666666667},null,"De kans op schade aan en/of slijtage van het publieke domein tijdens de exploitatie is gering"]
["matig",null,{"$f":"5/3*2","v":3.3333333333333335},null,"De kans op schade aan en/of slijtage van het publieke domein tijdens de exploitatie is matig"]
["groot",null,5,null,"De kans op schade aan en/of slijtage van het publieke domein tijdens de exploitatie is groot"]
["de kans  op schade of slijtage van het publieke domein is niet bekend",null,"x",null,"Het is niet bekend of er een kans is op schade aan en/of slijtage van het publieke domein tijdens de exploitatie"]
["L01 - milieuvergunning"]
["kies",null,0]
["geen meldingsplicht of milieuvergunning",null,0,null,{"$f":"CONCATENATE(\"De geplande activiteiten vereisten\",\" \",_L01[[#This Row],[L01 - milieuvergunning]])","v":"De geplande activiteiten vereisten geen meldingsplicht of milieuvergunning"}]
["een meldingsplicht klasse 3",null,{"$f":"5/3","v":1.6666666666666667},null,{"$f":"CONCATENATE(\"De geplande activiteiten vereisten\",\" \",_L01[[#This Row],[L01 - milieuvergunning]])","v":"De geplande activiteiten vereisten een meldingsplicht klasse 3"}]
["een milieuvergunning klasse 2",null,{"$f":"5/3*2","v":3.3333333333333335},null,{"$f":"CONCATENATE(\"De geplande activiteiten vereisten\",\" \",_L01[[#This Row],[L01 - milieuvergunning]])","v":"De geplande activiteiten vereisten een milieuvergunning klasse 2"}]
["een milieuvergunning klasse 1",null,5,null,{"$f":"CONCATENATE(\"De geplande activiteiten vereisten\",\" \",_L01[[#This Row],[L01 - milieuvergunning]])","v":"De geplande activiteiten vereisten een milieuvergunning klasse 1"}]
["de noodzaak van meldingsplicht of milieuvergunning is niet bekend",null,"x",null,"Het is niet bekend of de geplande activiteiten een meldingsplicht of milieuvergunning vereisen"]
["L02 - gevaarlijke stoffen"]
["kies",null,0]
["neen, de geplande activiteiten vereisen geen gevaarlijke stoffen",null,0,null,"De geplande activiteiten vereisen geen gevaarlijke stoffen"]
["ja, de geplande activiteiten vereisen gevaarlijke stoffen",null,5,null,"De geplande activiteiten vereisen gevaarlijke stoffen"]
["het is niet bekend of de geplande activiteiten gevaarlijke stoffen vereisen",null,"x",null,"Het is niet bekend of de geplande activiteiten gevaarlijke stoffen vereisen"]
["L03 - luchtverontreiniging"]
["kies",null,0]
["geen luchtverontreiniging",null,0,null,{"$f":"CONCATENATE(\"De geplande activiteiten veroorzaken\",\" \",_L03[[#This Row],[L03 - luchtverontreiniging]])","v":"De geplande activiteiten veroorzaken geen luchtverontreiniging"}]
["beperkte luchtverontreiniging",null,2.5,null,{"$f":"CONCATENATE(\"De geplande activiteiten veroorzaken\",\" \",_L03[[#This Row],[L03 - luchtverontreiniging]])","v":"De geplande activiteiten veroorzaken beperkte luchtverontreiniging"}]
["aanzienlijke luchtverontreiniging",null,5,null,{"$f":"CONCATENATE(\"De geplande activiteiten veroorzaken\",\" \",_L03[[#This Row],[L03 - luchtverontreiniging]])","v":"De geplande activiteiten veroorzaken aanzienlijke luchtverontreiniging"}]
["het is niet bekend of de geplande activiteiten luchtverontreiniging veroorzaken",null,"x",null,"Het is niet bekend of de geplande activiteiten luchtverontreiniging veroorzaken"]
["L04 - stofhinder"]
["kies",null,0]
["geen stofhinder",null,0,null,{"$f":"CONCATENATE(\"De geplande activiteiten veroorzaken\",\" \",_L04[[#This Row],[L04 - stofhinder]])","v":"De geplande activiteiten veroorzaken geen stofhinder"}]
["beperkte stofhinder",null,2.5,null,{"$f":"CONCATENATE(\"De geplande activiteiten veroorzaken\",\" \",_L04[[#This Row],[L04 - stofhinder]])","v":"De geplande activiteiten veroorzaken beperkte stofhinder"}]
["aanzienlijke stofhinder",null,5,null,{"$f":"CONCATENATE(\"De geplande activiteiten veroorzaken\",\" \",_L04[[#This Row],[L04 - stofhinder]])","v":"De geplande activiteiten veroorzaken aanzienlijke stofhinder"}]
["het is niet bekend of de geplande activiteiten stofhinder veroorzaken",null,"x",null,"Het is niet bekend of de geplande activiteiten stofhinder veroorzaken"]
["L05 - geurhinder"]
["kies",null,0]
["geen geurhinder",null,0,null,{"$f":"CONCATENATE(\"De geplande activiteiten veroorzaken\",\" \",_L05[[#This Row],[L05 - geurhinder]])","v":"De geplande activiteiten veroorzaken geen geurhinder"}]
["beperkte geurhinder",null,2.5,null,{"$f":"CONCATENATE(\"De geplande activiteiten veroorzaken\",\" \",_L05[[#This Row],[L05 - geurhinder]])","v":"De geplande activiteiten veroorzaken beperkte geurhinder"}]
["aanzienlijke geurhinder",null,5,null,{"$f":"CONCATENATE(\"De geplande activiteiten veroorzaken\",\" \",_L05[[#This Row],[L05 - geurhinder]])","v":"De geplande activiteiten veroorzaken aanzienlijke geurhinder"}]
["het is niet bekend of de geplande activiteiten geurhinder veroorzaken",null,"x",null,"Het is niet bekend of de geplande activiteiten geurhinder veroorzaken"]
["L05 - lichthinder"]
["kies",null,0]
["geen lichthinder",null,0,null,{"$f":"CONCATENATE(\"De geplande activiteiten veroorzaken\",\" \",_L06[[#This Row],[L05 - lichthinder]])","v":"De geplande activiteiten veroorzaken geen lichthinder"}]
["beperkte lichthinder",null,2.5,null,{"$f":"CONCATENATE(\"De geplande activiteiten veroorzaken\",\" \",_L06[[#This Row],[L05 - lichthinder]])","v":"De geplande activiteiten veroorzaken beperkte lichthinder"}]
["aanzienlijke lichthinder",null,5,null,{"$f":"CONCATENATE(\"De geplande activiteiten veroorzaken\",\" \",_L06[[#This Row],[L05 - lichthinder]])","v":"De geplande activiteiten veroorzaken aanzienlijke lichthinder"}]
["het is niet bekend of de geplande activiteiten lichthinder veroorzaken",null,"x",null,"Het is niet bekend of de geplande activiteiten lichthinder veroorzaken"]
["L07 - geluisoverlast"]
["kies",null,0]
["geen geluidsoverlast",null,0,null,{"$f":"CONCATENATE(\"De geplande activiteiten veroorzaken\",\" \",_L07[[#This Row],[L07 - geluisoverlast]])","v":"De geplande activiteiten veroorzaken geen geluidsoverlast"}]
["beperkte geluidsoverlast",null,2.5,null,{"$f":"CONCATENATE(\"De geplande activiteiten veroorzaken\",\" \",_L07[[#This Row],[L07 - geluisoverlast]])","v":"De geplande activiteiten veroorzaken beperkte geluidsoverlast"}]
["aanzienlijke geluidsoverlast",null,5,null,{"$f":"CONCATENATE(\"De geplande activiteiten veroorzaken\",\" \",_L07[[#This Row],[L07 - geluisoverlast]])","v":"De geplande activiteiten veroorzaken aanzienlijke geluidsoverlast"}]
["het is niet bekend of de geplande activiteiten geluidsoverlast veroorzaken",null,"x",null,"Het is niet bekend of de geplande activiteiten geluidsoverlast veroorzaken"]
["L08 - trillingen"]
["kies",null,0]
["geen trillingen",null,0,null,{"$f":"CONCATENATE(\"De geplande activiteiten veroorzaken\",\" \",_L08[[#This Row],[L08 - trillingen]])","v":"De geplande activiteiten veroorzaken geen trillingen"}]
["beperkte trilling",null,2.5,null,{"$f":"CONCATENATE(\"De geplande activiteiten veroorzaken\",\" \",_L08[[#This Row],[L08 - trillingen]])","v":"De geplande activiteiten veroorzaken beperkte trilling"}]
["aanzienlijke trilling",null,5,null,{"$f":"CONCATENATE(\"De geplande activiteiten veroorzaken\",\" \",_L08[[#This Row],[L08 - trillingen]])","v":"De geplande activiteiten veroorzaken aanzienlijke trilling"}]
["het is niet bekend of de geplande activiteiten trillingen veroorzaken",null,"x",null,"Het is niet bekend of de geplande activiteiten trillingen veroorzaken"]
["L09 - verharding"]
["kies",null,0]
["neen, de geplande activiteiten vereisen evenveel of minder verharde oppervlakte",null,0,null,"De geplande activiteiten vereisen evenveel of minder verharde oppervlakte"]
["ja, de geplande activiteiten vereisen meer verharde oppervlakte",null,5,null,"De geplande activiteiten vereisen meer verharde oppervlakte"]
["het is niet bekend of de geplande activiteiten meer of minder verharde oppervlakte vereisen",null,"x",null,"Het is niet bekend of de geplande activiteiten meer of minder verharde oppervlakte vereisen"]
["M00 - openbaar vervoer"]
["kies",null,0]
["de site ligt op wandelafstand van een bushalte en een station",null,0,null,"De site ligt op wandelafstand van een bushalte en een station"]
["de site ligt op wandelafstand van een bushalte of een station",null,1,null,"De site ligt op wandelafstand van een bushalte of een station"]
["de site ligt niet op wandelafstand van een bushalte of een station",null,5,null,"De site ligt niet op wandelafstand van een bushalte of een station"]
["M01 - wegennet"]
["kies",null,0]
["aan het hogere wegennet",null,0,null,"De site ligt langs het hogere wegennet"]
["op minder dan 0,5 km van het hogere wegennet",null,{"$f":"C236/4","v":1.25},null,{"$f":"CONCATENATE(\"De site ligt\",\" \",_M01[[#This Row],[M01 - wegennet]])","v":"De site ligt op minder dan 0,5 km van het hogere wegennet"}]
["op minder dan 1 km van het hogere wegennet",null,{"$f":"C236/4*2","v":2.5},null,{"$f":"CONCATENATE(\"De site ligt\",\" \",_M01[[#This Row],[M01 - wegennet]])","v":"De site ligt op minder dan 1 km van het hogere wegennet"}]
["op minder dan 5 km van het hogere wegennet",null,{"$f":"5/4*3","v":3.75},null,{"$f":"CONCATENATE(\"De site ligt\",\" \",_M01[[#This Row],[M01 - wegennet]])","v":"De site ligt op minder dan 5 km van het hogere wegennet"}]
["op méér dan 5 km van het hogere wegennet",null,5,null,{"$f":"CONCATENATE(\"De site ligt\",\" \",_M01[[#This Row],[M01 - wegennet]])","v":"De site ligt op méér dan 5 km van het hogere wegennet"}]
["M02 - ontsluitingstraject"]
["kies",null,0]
["goed",null,0,null,{"$f":"CONCATENATE(\"De kwaliteit van het ontsluitingstraject is\",\" \",_M02[[#This Row],[M02 - ontsluitingstraject]])","v":"De kwaliteit van het ontsluitingstraject is goed"}]
["matig",null,2.5,null,{"$f":"CONCATENATE(\"De kwaliteit van het ontsluitingstraject is\",\" \",_M02[[#This Row],[M02 - ontsluitingstraject]])","v":"De kwaliteit van het ontsluitingstraject is matig"}]
["slecht",null,5,null,{"$f":"CONCATENATE(\"De kwaliteit van het ontsluitingstraject is\",\" \",_M02[[#This Row],[M02 - ontsluitingstraject]])","v":"De kwaliteit van het ontsluitingstraject is slecht"}]
["de kwaliteit van het ontsluitingstraject is niet bekend                       ",null,"x",null,"De kwaliteit van het ontsluitingstraject is niet bekend"]
["M03 - vrachtverkeer"]
["kies",null,0]
["met lichte vrachtauto's (-3,5 ton)",null,0,null,{"$f":"CONCATENATE(\"De goederen worden hoofdzakelijk aan- en afgevoerd\",\" \",_M03[[#This Row],[M03 - vrachtverkeer]])","v":"De goederen worden hoofdzakelijk aan- en afgevoerd met lichte vrachtauto's (-3,5 ton)"}]
["met eendelige vrachtauto's",null,2.5,null,{"$f":"CONCATENATE(\"De goederen worden hoofdzakelijk aan- en afgevoerd\",\" \",_M03[[#This Row],[M03 - vrachtverkeer]])","v":"De goederen worden hoofdzakelijk aan- en afgevoerd met eendelige vrachtauto's"}]
["met tweedelige vrachtauto's (trekker en aanhanger)",null,5,null,{"$f":"CONCATENATE(\"De goederen worden hoofdzakelijk aan- en afgevoerd\",\" \",_M03[[#This Row],[M03 - vrachtverkeer]])","v":"De goederen worden hoofdzakelijk aan- en afgevoerd met tweedelige vrachtauto's (trekker en aanhanger)"}]
["hoe goederen worden aan- en afgevoerd is niet bekend",null,"x",null,"Hoe goederen worden aan- en afgevoerd is niet bekend"]
["M04 - aantal vrachtbewegingen"]
["kies",null,0]
["quasi geen vrachtbewegingen binnen de courante werkuren",null,0,null,"Binnen de courante werkuren (van 9 tot 16 uur) zijn er quasi geen vrachtbewegingen"]
["gemiddeld minder dan 2 vrachtbewegingen binnen de courante werkuren",null,{"$f":"C254/3*1","v":1.6666666666666667},null,"Binnen de courante werkuren (van 9 tot 16 uur) zijn er minder dan 2 vrachtbewegingen"]
["gemiddeld minder dan 5 vrachtbewingen binnen de courante werkuren",null,{"$f":"5/3*2","v":3.3333333333333335},null,"Binnen de courante werkuren (van 9 tot 16 uur) zijn er minder dan 5 vrachtbewegingen"]
["gemiddeld méér dan 5 vrachtbewegingen binnen de courante werkuren",null,5,null,"Binnen de courante werkuren (van 9 tot 16 uur) zijn er méér dan 5 vrachtbewegingen"]
["het aantal vrachtbewegingen binnen de courante werkuren is niet bekend",null,"x",null,"Het aantal vrachtbewegingen binnen de courante werkuren (van 9 tot 16 uur) is niet bekend"]
["M05 - aantal vrachtbewegingen"]
["kies",null,0]
["quasi geen vrachtbewegingen 's ochtends en 's avonds",null,0,null,"'s Morgens en 's avonds (van 6 tot 9 en van 16 tot 20 uur) zijn er quasi geen vrachtbewegingen"]
["gemiddeld minder dan 2 vrachtbewegingen 's ochtends en 's avonds",null,{"$f":"C261/3*1","v":1.6666666666666667},null,"'s Morgens en 's avonds (van 6 tot 9 en van 16 tot 20 uur) zijn er minder dan 2 vrachtbewegingen"]
["gemiddeld minder dan 5 vrachtbewingen 's ochtends en 's avonds",null,{"$f":"5/3*2","v":3.3333333333333335},null,"'s Morgens en 's avonds (van 6 tot 9 en van 16 tot 20 uur) zijn er minder dan 5 vrachtbewegingen"]
["gemiddeld méér dan 5 vrachtbewegingen 's ochtends en 's avonds",null,5,null,"'s Morgens en 's avonds (van 6 tot 9 en van 16 tot 20 uur) zijn er méér dan 5 vrachtbewegingen"]
["antwoord onbekend                                  ",null,"x",null,"Het aantal vrachtbewegingen 's morgens en 's avonds (van 6 tot 9 en van 16 tot 20 uur)  is niet bekend"]
["M06 - aantal vrachtbewegingen"]
["kies",null,0]
["quasi geen vrachtbewegingen 's nachts",null,0,null,"Binnen de courante werkuren (van 9 tot 16 uur) zijn er quasi geen vrachtbewegingen"]
["gemiddeld minder dan 2 vrachtbewegingen 's nachts",null,{"$f":"C268/3*1","v":1.6666666666666667},null,"Binnen de courante werkuren (van 9 tot 16 uur) zijn er minder dan 2 vrachtbewegingen"]
["gemiddeld minder dan 5 vrachtbewingen 's nachts",null,{"$f":"5/3*2","v":3.3333333333333335},null,"Binnen de courante werkuren (van 9 tot 16 uur) zijn er minder dan 5 vrachtbewegingen"]
["gemiddeld méér dan 5 vrachtbewegingen 's nachts",null,5,null,"Binnen de courante werkuren (van 9 tot 16 uur) zijn er méér dan 5 vrachtbewegingen"]
["antwoord onbekend                                  ",null,"x",null,"Het aantal vrachtbewegingen binnen de courante werkuren (van 9 tot 16 uur) is niet bekend"]
["M07 - concentratie"]
["kies",null,0]
["verlopen hoofdzakelijk gespreid",null,0,null,"De vrachtbewegingen zijn hoofdzakelijk gespreid in de tijd"]
["verlopen hoofdzakelijk geconcentreerd",null,5,null,"De vrachtbewegingen zijn hoofdzakelijke geconcentreerd"]
["de spreiding van de vrachtbewegingen is niet bekend",null,"x",null,"De spreiding van de vrachtbewegingen is niet bekend"]
["M08 - waar laden en lossen"]
["kies",null,0]
["op privaat domein, binnen afgesloten gebouw",null,0,null,{"$f":"CONCATENATE(\"Laden en lossen gebeurt\",\" \",_M08[[#This Row],[M08 - waar laden en lossen]])","v":"Laden en lossen gebeurt op privaat domein, binnen afgesloten gebouw"}]
["op privaat domein, in dock shelter",null,{"$f":"C280/3*1","v":1.6666666666666667},null,{"$f":"CONCATENATE(\"Laden en lossen gebeurt\",\" \",_M08[[#This Row],[M08 - waar laden en lossen]])","v":"Laden en lossen gebeurt op privaat domein, in dock shelter"}]
["op privaat domein, in open lucht",null,{"$f":"5/3*2","v":3.3333333333333335},null,{"$f":"CONCATENATE(\"Laden en lossen gebeurt\",\" \",_M08[[#This Row],[M08 - waar laden en lossen]])","v":"Laden en lossen gebeurt op privaat domein, in open lucht"}]
["op openbaar domein",null,5,null,{"$f":"CONCATENATE(\"Laden en lossen gebeurt\",\" \",_M08[[#This Row],[M08 - waar laden en lossen]])","v":"Laden en lossen gebeurt op openbaar domein"}]
["antwoord onbekend                                    ",null,"x",null,"Het is niet bekend waar laden en lossen gebeurt"]
["M09 - wanneer laden en lossen"]
["kies",null,0]
["uitsluitend binnen de courante werkuren",null,0,null,{"$f":"CONCATENATE(\"Laden en lossen gebeurt\",\" \",_M09[[#This Row],[M09 - wanneer laden en lossen]])","v":"Laden en lossen gebeurt uitsluitend binnen de courante werkuren"}]
["hoofdzakelijk binnen de courante werkuren",null,{"$f":"C287/3*1","v":1.6666666666666667},null,{"$f":"CONCATENATE(\"Laden en lossen gebeurt\",\" \",_M09[[#This Row],[M09 - wanneer laden en lossen]])","v":"Laden en lossen gebeurt hoofdzakelijk binnen de courante werkuren"}]
["uitsluitend buiten de courante werkuren, hoofdzakelijk 's morgens en 's avonds",null,{"$f":"5/3*2","v":3.3333333333333335},null,{"$f":"CONCATENATE(\"Laden en lossen gebeurt\",\" \",_M09[[#This Row],[M09 - wanneer laden en lossen]])","v":"Laden en lossen gebeurt uitsluitend buiten de courante werkuren, hoofdzakelijk 's morgens en 's avonds"}]
["uitsluitend buiten de courante werkuren, hoofdzakelijk 's nachts",null,5,null,{"$f":"CONCATENATE(\"Laden en lossen gebeurt\",\" \",_M09[[#This Row],[M09 - wanneer laden en lossen]])","v":"Laden en lossen gebeurt uitsluitend buiten de courante werkuren, hoofdzakelijk 's nachts"}]
["antwoord onbekend                                     ",null,"x",null,"Het is niet bekend wanneer laden en lossen gebeurt"]
["M10 - parkeren"]
["kies",null,0]
["ja, alle medewerkers en bezoekers zullen op eigen terrein kunnen parkeren",null,0,null,"Alle medewerkers en bezoekers zullen op eigen terrein kunnen parkeren"]
["neen, niet alle medewerkers en bezoekers zullen op eigen terrein kunnen parkeren",null,5,null,"Niet alle medewerkers en bezoekers zullen op eigen terrein kunnen parkeren"]
["antwoord onbekend                                      ",null,"x",null,"Waar medewerkers en bezoekers zullen parkeren is niet bekend"]
["M11 - shifts"]
["kies",null,0]
["neen, er zal niet in shifts worden gewerkt",null,0,null,"Er zal niet in shifts worden gewerkt"]
["ja, er zal in shifts worden gewerkt",null,5,null,"Er zal in shifts worden gewerkt"]
["antwoord onbekend                                       ",null,"x",null,"Of er in shifts zal worden gewerkt is niet bekend"]
["M12 - aantal bezoekers"]
["kies",null,0]
["geen bezoekers",null,0,null,{"$f":"CONCATENATE(\"Het bedrijf ontvangt\",\" \",_M12[[#This Row],[M12 - aantal bezoekers]])","v":"Het bedrijf ontvangt geen bezoekers"}]
["een beperkt aantal bezoekers",null,2.5,null,{"$f":"CONCATENATE(\"Het bedrijf ontvangt\",\" \",_M12[[#This Row],[M12 - aantal bezoekers]])","v":"Het bedrijf ontvangt een beperkt aantal bezoekers"}]
["tientallen bezoekers",null,5,null,{"$f":"CONCATENATE(\"Het bedrijf ontvangt\",\" \",_M12[[#This Row],[M12 - aantal bezoekers]])","v":"Het bedrijf ontvangt tientallen bezoekers"}]
["antwoord onbekend                                        ",null,"x",null,"Het is niet bekend hoeveel bezoekers het bedrijf ontvangt"]
["belang"]
["kies",null,0]
["zeer belangrijk",null,2]
["belangrijk",null,1]
["weinig belangrijk",null,0.5]
["belang"]
["kies",null,0]
["bepalend indien aanzienlijk",null,10]
["zeer belangrijk",null,2]
["belangrijk",null,1]
["weinig belangrijk",null,0.5]

{"sheet":"DATAVERWERKING","index":4,"n_rows":70,"n_cols":15,"rows_kept":70,"cut":false,"hidden":true,"merged":[[55,9,68,9],[5,9,17,9],[21,9,24,9],[28,9,39,9],[43,9,51,9]]}
[]
[]
[]
[null,{"$f":"INPUT!B21","v":"RUIMTELIJK KENMERKEN"}]
[null,{"$f":"INPUT!B22","v":"VAN DE LOCATIE"},null,null,null,"score","belang","totaal"]
[null,{"$f":"INPUT!B23","v":"Zijn er kwetsbare functies binnen een straal van 200 meter rond de site?"},{"$f":"INPUT!C23","v":"belangrijk"},{"$f":"INPUT!D23","v":"kies"},null,{"$f":"VLOOKUP(D6,Range_vlookup,3,FALSE)","v":0},{"$f":"VLOOKUP(C6,Range_vlookup,3,FALSE)","v":1},{"$f":"IF(F6=\"x\",\"x\",F6*G6)","v":0},null,{"$f":"H19*(D19/G19)/D19","v":0},null,null,"schaal","verdeling","score"]
[null,{"$f":"INPUT!B24","v":"Welke stedenbouwkundige bestemming heeft de site?"},{"$f":"INPUT!C24","v":"belangrijk"},{"$f":"INPUT!D24","v":"kies"},null,{"$f":"VLOOKUP(D7,Range_vlookup,3,FALSE)","v":0},{"$f":"VLOOKUP(C7,Range_vlookup,3,FALSE)","v":1},{"$f":"IF(F7=\"x\",\"x\",F7*G7)","v":0},null,null,null,null,0,20,{"$f":"J6/5","v":0}]
[null,{"$f":"INPUT!B25","v":"In welk type buurt ligt de site?"},{"$f":"INPUT!C25","v":"belangrijk"},{"$f":"INPUT!D25","v":"kies"},null,{"$f":"VLOOKUP(D8,Range_vlookup,3,FALSE)","v":0},{"$f":"VLOOKUP(C8,Range_vlookup,3,FALSE)","v":1},0,null,null,null,null,1,20,0.02]
[null,{"$f":"INPUT!B26","v":"Hoe groot is de site?"},{"$f":"INPUT!C26","v":"belangrijk"},{"$f":"INPUT!D26","v":"kies"},null,{"$f":"VLOOKUP(D9,Range_vlookup,3,FALSE)","v":0},{"$f":"VLOOKUP(C9,Range_vlookup,3,FALSE)","v":1},0,null,null,null,null,2,20,{"$f":"O12-O8-O7","v":0.98}]
[null,{"$f":"INPUT!B27","v":"Wat is de actuele graad van bebouwde oppervlakte op de site?"},null,{"$f":"INPUT!D27","v":"kies"},null,null,null,null,null,null,null,null,3,20,0]
[null,{"$f":"INPUT!B28","v":"Is er onroerend erfgoed op de site aanwezig?"},null,{"$f":"INPUT!D28","v":"kies"},null,null,null,null,null,null,null,null,4,20,0]
[null,{"$f":"INPUT!B29","v":"In welke staat is de site vandaag?"},null,{"$f":"INPUT!D29","v":"kies"},null,null,null,null,null,null,null,null,5,100,1]
[null,{"$f":"INPUT!B30","v":"Is er op de site voldoende ruimte om te bufferen?"},{"$f":"INPUT!C30","v":"belangrijk"},{"$f":"INPUT!D30","v":"kies"},null,{"$f":"VLOOKUP(D13,Range_vlookup,3,FALSE)","v":0},{"$f":"VLOOKUP(C13,Range_vlookup,3,FALSE)","v":1},0]
[null,{"$f":"INPUT!B31","v":"VAN DE GEPLANDE ACTIVITEIT"}]
[null,{"$f":"INPUT!B32","v":"Wat is de visuele impact van het project op de omgeving?"},{"$f":"INPUT!C32","v":"belangrijk"},{"$f":"INPUT!D32","v":"kies"},null,{"$f":"VLOOKUP(D15,Range_vlookup,3,FALSE)","v":0},{"$f":"VLOOKUP(C15,Range_vlookup,3,FALSE)","v":1},0]
[null,{"$f":"INPUT!B33","v":"In welke mate moet de bestaande toestand aan de geplande activiteiten worden aangepast?"},{"$f":"INPUT!C33","v":"belangrijk"},{"$f":"INPUT!D33","v":"kies"},null,{"$f":"VLOOKUP(D16,Range_vlookup,3,FALSE)","v":0},{"$f":"VLOOKUP(C16,Range_vlookup,3,FALSE)","v":1},0]
[null,{"$f":"INPUT!B34","v":"Vereisen de geplande activiteiten opslag in open lucht?"},{"$f":"INPUT!C34","v":"belangrijk"},{"$f":"INPUT!D34","v":"kies"},null,{"$f":"VLOOKUP(D17,Range_vlookup,3,FALSE)","v":0},{"$f":"VLOOKUP(C17,Range_vlookup,3,FALSE)","v":1},0]
[null,{"$f":"INPUT!B35","v":"Kan het aanwezige erfgoed op de site behouden worden?"},{"$f":"INPUT!C35","v":"belangrijk"},{"$f":"INPUT!D35","v":"kies"},null,{"$f":"VLOOKUP(D18,Range_vlookup,3,FALSE)","v":0},{"$f":"VLOOKUP(C18,Range_vlookup,3,FALSE)","v":1},0]
[null,null,null,{"$f":"IF(D11=LISTS!A36,9,8)","v":8},null,{"$f":"SUM(F6:F18)","v":0},{"$f":"SUM(G6:G18)","v":9},{"$f":"SUM(H6:H18)","v":0}]
[null,{"$f":"INPUT!B37","v":"SOCIALE KENMERKEN"}]
[null,{"$f":"INPUT!B38","v":"VAN DE GEPLANDE ACTIVITEIT"},null,null,null,null,null,null,null,null,null,null,"schaal","verdeling","score"]
[null,{"$f":"INPUT!B39","v":"Draagt het bedrijf bij tot de uitstraling van de gemeente?"},{"$f":"INPUT!C39","v":"belangrijk"},{"$f":"INPUT!D39","v":"kies"},null,{"$f":"VLOOKUP(D22,Range_vlookup,3,FALSE)","v":0},{"$f":"VLOOKUP(C22,Range_vlookup,3,FALSE)","v":1},{"$f":"IF(F22=\"x\",\"x\",F22*G22)","v":0},null,{"$f":"H26/G26","v":0},null,null,0,20,{"$f":"J22/5","v":0}]
[null,{"$f":"INPUT!B40","v":"Heeft het bedrijf een publieksfunctie?"},{"$f":"INPUT!C40","v":"belangrijk"},{"$f":"INPUT!D40","v":"kies"},null,{"$f":"VLOOKUP(D23,Range_vlookup,3,FALSE)","v":0},{"$f":"VLOOKUP(C23,Range_vlookup,3,FALSE)","v":1},0,null,null,null,null,1,20,0.02]
[null,{"$f":"INPUT!B41","v":"Is een gedeeld gebruik van delen van de bedrijfssite mogelijk en bespreekbaar?"},{"$f":"INPUT!C41","v":"belangrijk"},{"$f":"INPUT!D41","v":"kies"},null,{"$f":"VLOOKUP(D24,Range_vlookup,3,FALSE)","v":0},{"$f":"VLOOKUP(C24,Range_vlookup,3,FALSE)","v":1},0,null,null,null,null,2,20,{"$f":"O27-O23-O22","v":0.98}]
[null,{"$f":"INPUT!B42","v":"Komt de zaakvoerder of een  conciërge bij het bedrijf wonen?"},{"$f":"INPUT!C42","v":"belangrijk"},{"$f":"INPUT!D42","v":"kies"},null,{"$f":"VLOOKUP(D25,Range_vlookup,3,FALSE)","v":0},{"$f":"VLOOKUP(C25,Range_vlookup,3,FALSE)","v":1},0,null,null,null,null,3,20,0]
[null,null,null,{"$f":"IF(D18=LISTS!A43,9,8)","v":8},null,{"$f":"SUM(F22:F25)","v":0},{"$f":"SUM(G22:G25)","v":4},{"$f":"SUM(H22:H25)","v":0},null,null,null,null,4,20,0]
[null,{"$f":"INPUT!B44","v":"ECONOMISCHE KENMERKEN"},null,null,null,null,null,null,null,null,null,null,5,100,1]
[null,{"$f":"INPUT!B45","v":"VAN DE GEPLANDE ACTIVITEIT"}]
[null,{"$f":"INPUT!B46","v":"Tot welke economische sector behoort het bedrijf?"},null,{"$f":"INPUT!D46","v":"kies"},null,null,null,null,null,{"$f":"IF(H41<0,0,H41/G41)","v":0}]
[null,{"$f":"INPUT!B47","v":"Is de belangrijkste doelgroep van het bedrijf particulieren (B2C) of professionelen (B2B)"},null,{"$f":"INPUT!D47","v":"kies"}]
[null,{"$f":"INPUT!B48","v":"Laat de onderneming zich binnen een regionaal clusterbeleid inschrijven?"},{"$f":"INPUT!C48","v":"belangrijk"},{"$f":"INPUT!D48","v":"kies"},null,{"$f":"VLOOKUP(D31,Range_vlookup,3,FALSE)","v":0},{"$f":"VLOOKUP(C31,Range_vlookup,3,FALSE)","v":1},{"$f":"IF(F31=\"x\",\"x\",F31*G31)","v":0},null,null,null,null,"schaal","verdeling","score"]
[null,{"$f":"INPUT!B49","v":"In welke mate hangt het bedrijf af van lokale (dus nabije) leveranciers?"},{"$f":"INPUT!C49","v":"belangrijk"},{"$f":"INPUT!D49","v":"kies"},null,0,1,0,null,null,null,null,0,20,{"$f":"J29/5","v":0}]
[null,{"$f":"INPUT!B50","v":"In welke mate hangt het bedrijf af van lokale (dus nabije) klanten? "},{"$f":"INPUT!C50","v":"belangrijk"},{"$f":"INPUT!D50","v":"kies"},null,0,1,0,null,null,null,null,1,20,0.02]
[null,{"$f":"INPUT!B51","v":"Welke betekenis hebben de geplande investeringen van het bedrijf?"},{"$f":"INPUT!C51","v":"belangrijk"},{"$f":"INPUT!D51","v":"kies"},null,0,1,0,null,null,null,null,2,20,{"$f":"O37-O33-O32","v":0.98}]
[null,{"$f":"INPUT!B52","v":"Betreft het een nieuw bedrijf, of de uitbreiding of verhuis van een bestaand bedrijf?"},{"$f":"INPUT!C52","v":"belangrijk"},{"$f":"INPUT!D52","v":"kies"},null,0,1,{"$f":"IF(F35=\"x\",\"x\",F35*G35)","v":0},null,null,null,null,3,20,0]
[null,{"$f":"INPUT!B53","v":"Hoeveel (bijkomende) tewerkstelling brengt de investering met zich mee?"},{"$f":"INPUT!C53","v":"belangrijk"},{"$f":"INPUT!D53","v":"kies"},null,0,1,0,null,null,null,null,4,20,0]
[null,{"$f":"INPUT!B54","v":"Hoeveel groeimarge heeft de investering binnen het terrein op basis van actuele groeicijfers?"},{"$f":"INPUT!C54","v":"belangrijk"},{"$f":"INPUT!D54","v":"kies"},null,0,1,0,null,null,null,null,5,100,1]
[null,{"$f":"INPUT!B55","v":"Wat betekent de investering op vlak van gemeentelijke inkomsten?"},{"$f":"INPUT!C55","v":"belangrijk"},{"$f":"INPUT!D55","v":"kies"},null,0,1,0]
[null,{"$f":"INPUT!B56","v":"Zijn er investeringen nodig vanuit de stad of gemeente om de investering te faciliteren?"},{"$f":"INPUT!C56","v":"belangrijk"},{"$f":"INPUT!D56","v":"kies"},null,0,1,0]
[null,{"$f":"INPUT!B57","v":"Hoe groot is de kans op schade aan en/of slijtage van het publieke domein tijdens de exploitatie"},{"$f":"INPUT!C57","v":"belangrijk"},{"$f":"INPUT!D57","v":"kies"},null,0,1,0]
[null,null,null,null,null,{"$f":"SUM(F31:F40)","v":0},{"$f":"SUM(G31:G40)","v":10},{"$f":"SUM(H31:H40)","v":0}]
[null,{"$f":"INPUT!B59","v":"KENMERKEN LEEFMILIEU"}]
[null,{"$f":"INPUT!B60","v":"VAN DE GEPLANDE ACTIVITEIT"}]
[null,{"$f":"INPUT!B61","v":"Vereisen de geplande activiteiten een milieuvergunning?"},{"$f":"INPUT!C61","v":"belangrijk"},{"$f":"INPUT!D61","v":"kies"},null,{"$f":"VLOOKUP(D44,Range_vlookup,3,FALSE)","v":0},{"$f":"VLOOKUP(C44,Range_vlookup,3,FALSE)","v":1},{"$f":"IF(F44=\"x\",\"x\",F44*G44)","v":0},null,{"$f":"IF(OR(H46=50,H47=50,H48=50,H49=50,H50=50,H51=50),5,H53/G53)","v":0}]
[null,{"$f":"INPUT!B62","v":"Vereisen de geplande activiteiten de opslag of behandeling van gevaarlijke stoffen?"},{"$f":"INPUT!C62","v":"belangrijk"},{"$f":"INPUT!D62","v":"kies"},null,0,1,0,null,null,null,null,"schaal","verdeling","score"]
[null,{"$f":"INPUT!B63","v":"Veroorzaken de geplande activiteiten luchtverontreiniging?"},{"$f":"INPUT!C63","v":"belangrijk"},{"$f":"INPUT!D63","v":"kies"},null,0,{"$f":"VLOOKUP(C46,Range_vlookup,3,FALSE)","v":1},0,null,null,null,null,0,20,{"$f":"J44/5","v":0}]
[null,{"$f":"INPUT!B64","v":"Veroorzaken de geplande activiteiten stofhinder?"},{"$f":"INPUT!C64","v":"belangrijk"},{"$f":"INPUT!D64","v":"kies"},null,0,1,0,null,null,null,null,1,20,0.02]
[null,{"$f":"INPUT!B65","v":"Veroorzaken de geplande activiteiten geurhinder?"},{"$f":"INPUT!C65","v":"belangrijk"},{"$f":"INPUT!D65","v":"kies"},null,0,1,{"$f":"IF(F48=\"x\",\"x\",F48*G48)","v":0},null,null,null,null,2,20,{"$f":"O51-O47-O46","v":0.98}]
[null,{"$f":"INPUT!B66","v":"Veroorzaken de geplande activiteiten lichthinder?"},{"$f":"INPUT!C66","v":"belangrijk"},{"$f":"INPUT!D66","v":"kies"},null,0,1,0,null,null,null,null,3,20,0]
[null,{"$f":"INPUT!B67","v":"Veroorzaken de geplande activiteiten geluidsoverlast?"},{"$f":"INPUT!C67","v":"belangrijk"},{"$f":"INPUT!D67","v":"kies"},null,0,1,{"$f":"IF(F50=\"x\",\"x\",F50*G50)","v":0},null,null,null,null,4,20,0]
[null,{"$f":"INPUT!B68","v":"Veroorzaken de geplande activiteiten trillingen?"},{"$f":"INPUT!C68","v":"belangrijk"},{"$f":"INPUT!D68","v":"kies"},null,0,1,{"$f":"IF(F51=\"x\",\"x\",F51*G51)","v":0},null,null,null,null,5,100,1]
[null,{"$f":"INPUT!B69","v":"Vereisen de geplande activiteiten meer verharde oppervlakte dan vandaag reeds op de site aanwezig is?"},{"$f":"INPUT!C69","v":"belangrijk"},{"$f":"INPUT!D69","v":"kies"},null,0,1,0]
[null,null,null,null,null,{"$f":"SUM(F44:F52)","v":0},{"$f":"SUM(G44:G52)","v":9},{"$f":"SUM(H44:H52)","v":0}]
[null,{"$f":"INPUT!B71","v":"MOBILITEITSKENMERKEN"}]
[null,{"$f":"INPUT!B72","v":"VAN DE LOCATIE"}]
[null,{"$f":"INPUT!B73","v":"Ligt de site op wandelafstand van openbaar vervoer?"},{"$f":"INPUT!C73","v":"belangrijk"},{"$f":"INPUT!D73","v":"kies"},null,{"$f":"VLOOKUP(D56,Range_vlookup,3,FALSE)","v":0},{"$f":"VLOOKUP(C56,Range_vlookup,3,FALSE)","v":1},{"$f":"IF(F56=\"x\",\"x\",F56*G56)","v":0},null,{"$f":"H70/G70","v":0}]
[null,{"$f":"INPUT!B74","v":"Hoe ver ligt de site van het hogere wegennet?"},{"$f":"INPUT!C74","v":"belangrijk"},{"$f":"INPUT!D74","v":"kies"},null,{"$f":"VLOOKUP(D57,Range_vlookup,3,FALSE)","v":0},{"$f":"VLOOKUP(C57,Range_vlookup,3,FALSE)","v":1},{"$f":"IF(F57=\"x\",\"x\",F57*G57)","v":0},null,null,null,null,"schaal","verdeling","score"]
[null,{"$f":"INPUT!B75","v":"Wat is de kwaliteit van het ontsluitingstraject?"},{"$f":"INPUT!C75","v":"belangrijk"},{"$f":"INPUT!D75","v":"kies"},null,{"$f":"VLOOKUP(D58,Range_vlookup,3,FALSE)","v":0},{"$f":"VLOOKUP(C58,Range_vlookup,3,FALSE)","v":1},0,null,null,null,null,0,20,{"$f":"J56/5","v":0}]
[null,{"$f":"INPUT!B76","v":"VAN DE GEPLANDE ACTIVITEIT"},null,null,null,null,null,null,null,null,null,null,1,20,0.02]
[null,{"$f":"INPUT!B77","v":"Met welk type vrachtvervoer worden goederen hoofdzakelijk aan- en afgevoerd?"},{"$f":"INPUT!C77","v":"belangrijk"},{"$f":"INPUT!D77","v":"kies"},null,{"$f":"VLOOKUP(D60,Range_vlookup,3,FALSE)","v":0},{"$f":"VLOOKUP(C60,Range_vlookup,3,FALSE)","v":1},{"$f":"IF(F60=\"x\",\"x\",F60*G60)","v":0},null,null,null,null,2,20,{"$f":"O63-O59-O58","v":0.98}]
[null,{"$f":"INPUT!B78","v":"Hoeveel vrachtbewegingen zijn er binnen de courante werkuren?"},{"$f":"INPUT!C78","v":"belangrijk"},{"$f":"INPUT!D78","v":"kies"},null,0,1,0,null,null,null,null,3,20,0]
[null,{"$f":"INPUT!B79","v":"Hoeveel vrachtbewegingen zijn er 's morgens en 's avonds (samengeteld)?"},{"$f":"INPUT!C79","v":"belangrijk"},{"$f":"INPUT!D79","v":"kies"},null,0,1,0,null,null,null,null,4,20,0]
[null,{"$f":"INPUT!B80","v":"Hoeveel vrachtbewegingen zijn er 's nachts?"},{"$f":"INPUT!C80","v":"belangrijk"},{"$f":"INPUT!D80","v":"kies"},null,0,1,0,null,null,null,null,5,100,1]
[null,{"$f":"INPUT!B81","v":"In welke mate zijn de vrachtbewegingen gespreid in tijd?"},{"$f":"INPUT!C81","v":"belangrijk"},{"$f":"INPUT!D81","v":"kies"},null,0,1,0]
[null,{"$f":"INPUT!B82","v":"Waar gebeurt het laden en lossen?"},{"$f":"INPUT!C82","v":"belangrijk"},{"$f":"INPUT!D82","v":"kies"},null,0,1,0]
[null,{"$f":"INPUT!B83","v":"Wanneer gebeurt het laden en lossen?"},{"$f":"INPUT!C83","v":"belangrijk"},{"$f":"INPUT!D83","v":"kies"},null,0,1,0]
[null,{"$f":"INPUT!B84","v":"Zullen de medewerkers op het eigen bedrijfsterrein kunnen parkeren?"},{"$f":"INPUT!C84","v":"belangrijk"},{"$f":"INPUT!D84","v":"kies"},null,0,1,0]
[null,{"$f":"INPUT!B85","v":"Wordt er bij de geplande activiteiten in shifts gewerkt?"},{"$f":"INPUT!C85","v":"belangrijk"},{"$f":"INPUT!D85","v":"kies"},null,0,1,0]
[null,{"$f":"INPUT!B86","v":"Hoeveel bezoekers ontvangt heb bedrijf?"},{"$f":"INPUT!C86","v":"belangrijk"},{"$f":"INPUT!D86","v":"kies"},null,0,1,0]
[null,null,null,null,null,{"$f":"SUM(F56:F69)","v":0},{"$f":"SUM(G56:G69)","v":13},{"$f":"SUM(H56:H69)","v":0}]